[Event "27th OIBM 2024"]
[Site "Gmund am Tegernsee"]
[Date "2024.10.29"]
[Round "4.41"]
[White "Forchert, Martin"]
[Black "Kather, Yannick"]
[Result "1-0"]
[ECO "B39"]
[WhiteElo "2316"]
[BlackElo "2108"]
[Annotator "RC"]
[PlyCount "98"]
[EventDate "2024.09.16"]
[EventType "swiss"]
[EventCountry "GER"]
[SourceTitle "playchess.com"]
[Source "ChessBase"]
[SourceQuality "1"]
[TimeControl "40/5400+30:1800+30"]

1. e4 {[%emt 0:00:02]} c5 {[%emt 0:00:10]} 2. Nf3 {[%emt 0:00:10]} Nc6 {[%emt 0:00:07]} 3. d4 {[%emt 0:00:27]} cxd4 {[%emt 0:00:14]} 4. Nxd4 {[%emt 0:00:04]} g6 {[%emt 0:00:14]} 5. c4 {[%emt 0:00:09]} Nf6 {[%emt 0:00:11]} 6. Nc3 {[%emt 0:00:08]} d6 {[%emt 0:00:08]} 7. f3 {[%emt 0:00:26]} Nxd4 {[%emt 0:00:17]} 8. Qxd4 {[%emt 0:00:07]} Bg7 {[%emt 0:00:10]} 9. Be3 {[%emt 0:00:17]} O-O {[%emt 0:00:11]} 10. Qd2 {[%emt 0:00:07]} a5 {[%emt 0:00:30]} 11. b3 {[%emt 0:00:46]} Bd7 {[%emt 0:00:36]} 12. Be2 {[%emt 0:02:30]} Bc6 {[%emt 0:00:27]} 13. O-O {[%emt 0:00:32]} Nd7 {[%emt 0:00:40]} 14. Rab1 {[%emt 0:00:57]} Nc5 {[%emt 0:02:11]} 15. Rfc1 {[%emt 0:04:24]} e6 {[%emt 0:12:58]} 16. Nb5 {[%emt 0:21:42]} Be5 {[%emt 0:01:00]} 17. Bf1 {[%emt 0:02:00]} f5 {[%emt 0:43:13]} 18. exf5 {[%emt 0:20:57]} gxf5 {[%emt 0:01:40]} 19. Nd4 {[%emt 0:12:12]} f4 {[%emt 0:07:18]} 20. Bf2 {[%emt 0:00:04]} Bxd4 {[%emt 0:03:44]} 21. Bxd4 {[%emt 0:02:04]} e5 {[%emt 0:00:36]} 22. Bc3 {[%emt 0:00:31]} Rf6 {[%emt 0:01:58]} 23. Rd1 {[%emt 0:01:13]} Rg6 {[%emt 0:01:16]} 24. Qf2 {[%emt 0:02:31]} Qf8 {[%emt 0:04:10]} 25. Rb2 {[%emt 0:03:20]} Ne6 {[%emt 0:00:50]} 26. c5 {[%emt 0:03:14]} Nxc5 {[%emt 0:03:48]} 27. Bc4+ {[%emt 0:00:14]} Ne6 {[%emt 0:01:41]} 28. Rbd2 {[%emt 0:00:21]} b5 {[%emt 0:02:19]} 29. Rxd6 {[%emt 0:02:26]} bxc4 {[%emt 0:00:29]} 30. Rxc6 {[%emt 0:00:11]} e4 {[%emt 0:02:12]} 31. fxe4 {[%emt 0:07:05]} f3 {[%emt 0:00:35]} 32. g3 {[%emt 0:00:08]} cxb3 {[%emt 0:03:27]} 33. Rxe6 {[%emt 0:07:43]} Rxe6 {[%emt 0:00:16]} 34. Qd4 {[%emt 0:00:04]} Kf7 {[%emt 0:02:54]} 35. Qd5 {[%emt 0:03:56]} Qh6 {[%emt 0:01:08]} 36. Qxa8 {[%emt 0:02:21]} Qe3+ {[%emt 0:00:06]} 37. Kh1 {[%emt 0:00:13]} Qxc3 {[%emt 0:01:32]} 38. Rd7+ {[%emt 0:00:17]} Re7 {[%emt 0:01:36]} 39. Qd5+ {[%emt 0:00:06]} Kf8 {[%emt 0:00:13]} 40. Rd8+ {[%emt 0:00:50]} Re8 {[%emt 0:00:40]} 41. Qd6+ {[%emt 0:32:09]} Kg7 {[%emt 0:15:27]} 42. Qd7+ {[%emt 0:00:00]} Kh6 {[%emt 0:01:11]} 43. Qh3+ {[%emt 0:00:00]} Kg7 {[%emt 0:00:23]} 44. Rd7+ {[%emt 0:00:00]} Re7 {[%emt 0:17:44]} 45. Qg4+ {[%emt 0:04:02]} Kf7 {[%emt 0:00:30]} 46. Qh5+ {[%emt 0:00:30]} Kg8 {[%emt 0:00:30]} 47. Qg5+ {[%emt 0:00:30]} Kf8 {[%emt 0:00:30]} 48. Qh6+ Qg7 {[%emt 0:00:30]} 49. Rd8+ Re8 1-0

[Event "27th OIBM 2024"]
[Site "Gmund am Tegernsee"]
[Date "2024.10.29"]
[Round "4.42"]
[White "Hofmann, Lorenz"]
[Black "Kozlovic, Jernej"]
[Result "1-0"]
[ECO "C56"]
[WhiteElo "2105"]
[BlackElo "2313"]
[Annotator "RC"]
[PlyCount "57"]
[EventDate "2024.09.16"]
[EventType "swiss"]
[EventCountry "GER"]
[SourceTitle "playchess.com"]
[Source "ChessBase"]
[SourceQuality "1"]
[TimeControl "40/5400+30:1800+30"]

1. e4 {[%emt 0:00:02]} e5 {[%emt 0:00:13]} 2. Bc4 {[%emt 0:00:03]} Nf6 {[%emt 0:00:25]} 3. d4 {[%emt 0:00:05]} exd4 {[%emt 0:00:26]} 4. Nf3 {[%emt 0:00:07]} Nc6 {[%emt 0:00:56]} 5. e5 {[%emt 0:00:26]} d5 {[%emt 0:00:15]} 6. Bb5 {[%emt 0:00:04]} Ne4 {[%emt 0:00:09]} 7. Nxd4 {[%emt 0:00:07]} Bd7 {[%emt 0:00:06]} 8. Bxc6 {[%emt 0:00:05]} bxc6 {[%emt 0:00:09]} 9. O-O {[%emt 0:00:09]} Bc5 {[%emt 0:00:07]} 10. f3 {[%emt 0:00:12]} Ng5 {[%emt 0:00:09]} 11. f4 {[%emt 0:00:07]} Ne4 {[%emt 0:00:06]} 12. Be3 {[%emt 0:00:14]} Bb6 {[%emt 0:01:12]} 13. c3 {[%emt 0:11:35]} c5 {[%emt 0:04:30]} 14. Nf3 {[%emt 0:02:31]} Bb5 {[%emt 0:09:03]} 15. Re1 {[%emt 0:00:33]} Bc6 {[%emt 0:05:37]} 16. e6 {[%emt 0:14:26]} f6 {[%emt 0:10:17]} 17. Nbd2 {[%emt 0:06:26]} Nxd2 {[%emt 0:10:04]} 18. Bxd2 {[%emt 0:01:23]} Qd6 {[%emt 0:06:55]} 19. f5 {[%emt 0:18:52]} O-O-O {[%emt 0:01:55]} 20. Kh1 {[%emt 0:12:54]} d4 {[%emt 0:09:11]} 21. cxd4 {[%emt 0:05:06]} cxd4 {[%emt 0:00:15]} 22. a4 {[%emt 0:00:34]} a6 {[%emt 0:05:50]} 23. Rc1 {[%emt 0:02:12]} g6 {[%emt 0:03:58]} 24. e7 {[%emt 0:02:30]} gxf5 {[%emt 0:11:40]} 25. exd8=Q+ {[%emt 0:00:26]} Rxd8 {[%emt 0:00:10]} 26. a5 {[%emt 0:00:45]} Ba7 {[%emt 0:00:16]} 27. Bf4 {[%emt 0:01:07]} Qd7 {[%emt 0:00:55]} 28. Qc2 {[%emt 0:00:49]} Kb7 {[%emt 0:00:09]} 29. Re7 {[%emt 0:01:56]} 1-0

[Event "27th OIBM 2024"]
[Site "Gmund am Tegernsee"]
[Date "2024.10.29"]
[Round "4.43"]
[White "Heigermoser, Robert"]
[Black "Wong, Gengchun"]
[Result "1-0"]
[ECO "B90"]
[WhiteElo "2102"]
[BlackElo "2295"]
[Annotator "RC"]
[PlyCount "87"]
[EventDate "2024.09.16"]
[EventType "swiss"]
[EventCountry "GER"]
[SourceTitle "playchess.com"]
[Source "ChessBase"]
[SourceQuality "1"]
[TimeControl "40/5400+30:1800+30"]

1. e4 {[%emt 0:01:39]} c5 {[%emt 0:00:05]} 2. Nf3 {[%emt 0:00:06]} d6 {[%emt 0:00:06]} 3. d4 {[%emt 0:00:07]} cxd4 {[%emt 0:00:05]} 4. Nxd4 {[%emt 0:00:08]} Nf6 {[%emt 0:00:05]} 5. Nc3 {[%emt 0:00:11]} a6 {[%emt 0:00:33]} 6. Be3 {[%emt 0:02:52]} e5 {[%emt 0:00:47]} 7. Nb3 {[%emt 0:00:11]} Be6 {[%emt 0:00:26]} 8. h3 {[%emt 0:00:33]} h5 {[%emt 0:09:58]} 9. f4 {[%emt 0:07:51]} exf4 {[%emt 0:04:57]} 10. Bxf4 {[%emt 0:00:08]} Nc6 {[%emt 0:00:10]} 11. Qe2 {[%emt 0:03:48]} Nd7 {[%emt 0:10:24]} 12. O-O-O {[%emt 0:01:29]} Nce5 {[%emt 0:00:45]} 13. Nd4 {[%emt 0:06:54]} Rc8 {[%emt 0:03:55]} 14. Qe3 {[%emt 0:02:49]} Qa5 {[%emt 0:03:13]} 15. a3 {[%emt 0:16:05]} Be7 {[%emt 0:03:13]} 16. Nf5 {[%emt 0:05:06]} Bxf5 {[%emt 0:18:30]} 17. exf5 {[%emt 0:00:08]} Qb6 {[%emt 0:00:13]} 18. Qd2 {[%emt 0:09:48]} Nf6 {[%emt 0:01:30]} 19. Bg5 {[%emt 0:05:13]} O-O {[%emt 0:03:46]} 20. Kb1 {[%emt 0:07:56]} Rc6 {[%emt 0:13:41]} 21. Be3 {[%emt 0:13:00]} Qc7 {[%emt 0:09:29]} 22. Bd4 {[%emt 0:00:27]} Rc8 {[%emt 0:03:43]} 23. Be2 {[%emt 0:00:59]} h4 {[%emt 0:01:28]} 24. g4 {[%emt 0:01:39]} hxg3 {[%emt 0:00:26]} 25. Rhg1 {[%emt 0:00:10]} Qd8 {[%emt 0:03:42]} 26. Qe3 {[%emt 0:03:42]} Nfd7 {[%emt 0:02:45]} 27. Rxg3 {[%emt 0:02:08]} Bh4 {[%emt 0:01:05]} 28. Rg2 {[%emt 0:02:05]} Bf6 {[%emt 0:03:14]} 29. Rdg1 {[%emt 0:00:51]} Rxc3 {[%emt 0:00:55]} 30. Bxc3 {[%emt 0:00:35]} Kf8 {[%emt 0:00:40]} 31. Rd1 {[%emt 0:01:27]} Qc7 {[%emt 0:00:35]} 32. Qd2 {[%emt 0:01:21]} Ke7 {[%emt 0:00:39]} 33. Bb4 {[%emt 0:00:46]} Nc5 {[%emt 0:00:04]} 34. Qd5 {[%emt 0:01:26]} b5 {[%emt 0:00:50]} 35. Bh5 {[%emt 0:00:30]} Rh8 {[%emt 0:00:26]} 36. Bg4 {[%emt 0:01:06]} a5 {[%emt 0:01:07]} 37. Bxa5 {[%emt 0:01:05]} Qb8 {[%emt 0:00:42]} 38. Bb4 {[%emt 0:00:17]} Rc8 {[%emt 0:00:10]} 39. Bh5 {[%emt 0:00:36]} Qc7 {[%emt 0:00:41]} 40. Re2 {[%emt 0:00:58]} Kf8 {[%emt 0:00:43]} 41. Qxd6+ {[%emt 0:32:10]} Qxd6 {[%emt 0:30:06]} 42. Rxd6 {[%emt 0:00:05]} Kg8 {[%emt 0:00:08]} 43. Rxe5 {[%emt 0:00:00]} Bxe5 {[%emt 0:00:00]} 44. Rd5 {[%emt 0:00:00]} 1-0

[Event "27th OIBM 2024"]
[Site "Gmund am Tegernsee"]
[Date "2024.10.29"]
[Round "4.44"]
[White "Ciak, Rene"]
[Black "Priyanka Nutakki"]
[Result "0-1"]
[ECO "D30"]
[WhiteElo "2097"]
[BlackElo "2289"]
[Annotator "RC"]
[PlyCount "40"]
[EventDate "2024.09.16"]
[EventType "swiss"]
[EventCountry "GER"]
[SourceTitle "playchess.com"]
[Source "ChessBase"]
[SourceQuality "1"]
[TimeControl "40/5400+30:1800+30"]

1. d4 {[%emt 0:06:17]} d5 {[%emt 0:00:12]} 2. Nf3 {[%emt 0:00:05]} Nf6 {[%emt 0:00:14]} 3. c4 {[%emt 0:00:43]} e6 {[%emt 0:00:12]} 4. e3 {[%emt 0:00:37]} Be7 {[%emt 0:02:23]} 5. Bd3 {[%emt 0:11:27]} dxc4 {[%emt 0:00:50]} 6. Bxc4 {[%emt 0:00:04]} a6 {[%emt 0:00:12]} 7. a3 {[%emt 0:01:57]} O-O {[%emt 0:01:12]} 8. O-O {[%emt 0:00:08]} b5 {[%emt 0:00:45]} 9. Bd3 {[%emt 0:07:10]} Bb7 {[%emt 0:00:33]} 10. Qe2 {[%emt 0:05:55]} Nbd7 {[%emt 0:02:51]} 11. Rd1 {[%emt 0:01:08]} Qc8 {[%emt 0:07:08]} 12. e4 {[%emt 0:26:26]} c5 {[%emt 0:00:25]} 13. e5 {[%emt 0:00:02]} Ne8 {[%emt 0:09:43]} 14. Be3 {[%emt 0:13:52]} c4 {[%emt 0:06:59]} 15. Bc2 {[%emt 0:00:13]} f5 {[%emt 0:00:09]} 16. exf6 {[%emt 0:11:46]} Ndxf6 {[%emt 0:00:09]} 17. Ne5 {[%emt 0:06:44]} Nd6 {[%emt 0:09:33]} 18. Nd2 {[%emt 0:01:28]} Qe8 {[%emt 0:02:01]} 19. Bg5 {[%emt 0:02:42]} Nd5 {[%emt 0:04:48]} 20. Ne4 {[%emt 0:00:35]} Nf5 {[%emt 0:05:08]} 0-1

[Event "27th OIBM 2024"]
[Site "Gmund am Tegernsee"]
[Date "2024.10.29"]
[Round "4.45"]
[White "Isbilir, Levin"]
[Black "Schuster, Karsten"]
[Result "1/2-1/2"]
[ECO "B12"]
[WhiteElo "2092"]
[BlackElo "2283"]
[Annotator "RC"]
[PlyCount "38"]
[EventDate "2024.09.16"]
[EventType "swiss"]
[EventCountry "GER"]
[SourceTitle "playchess.com"]
[Source "ChessBase"]
[SourceQuality "1"]
[TimeControl "40/5400+30:1800+30"]

1. e4 {[%emt 0:00:02]} c6 {[%emt 0:00:05]} 2. d4 {[%emt 0:00:08]} d5 {[%emt 0:00:06]} 3. e5 {[%emt 0:00:06]} Bf5 {[%emt 0:00:05]} 4. h4 {[%emt 0:00:05]} h5 {[%emt 0:00:05]} 5. Bd3 {[%emt 0:00:11]} Bxd3 {[%emt 0:00:05]} 6. Qxd3 {[%emt 0:00:05]} e6 {[%emt 0:00:04]} 7. Nf3 {[%emt 0:00:13]} Be7 {[%emt 0:00:14]} 8. c4 {[%emt 0:01:36]} Nh6 {[%emt 0:05:09]} 9. Bxh6 {[%emt 0:06:33]} Rxh6 {[%emt 0:00:10]} 10. g3 {[%emt 0:09:35]} dxc4 {[%emt 0:08:41]} 11. Qxc4 {[%emt 0:00:08]} Qd5 {[%emt 0:00:04]} 12. Qd3 {[%emt 0:05:42]} Na6 {[%emt 0:09:11]} 13. Nc3 {[%emt 0:03:15]} Nb4 {[%emt 0:17:38]} 14. Qe2 {[%emt 0:06:06]} Qa5 {[%emt 0:03:57]} 15. O-O {[%emt 0:03:47]} Qa6 {[%emt 0:04:33]} 16. Qd2 {[%emt 0:09:37]} Rd8 {[%emt 0:04:05]} 17. a3 {[%emt 0:06:26]} Nd5 {[%emt 0:12:28]} 18. Ne4 {[%emt 0:02:07]} Qb6 {[%emt 0:03:03]} 19. Rac1 {[%emt 0:10:00]} Ra8 {[%emt 0:30:17]} 1/2-1/2

[Event "27th OIBM 2024"]
[Site "Gmund am Tegernsee"]
[Date "2024.10.29"]
[Round "4.46"]
[White "Dehlinger, Alexander"]
[Black "Jahnz, Laurin"]
[Result "1-0"]
[ECO "A95"]
[WhiteElo "2276"]
[BlackElo "2086"]
[Annotator "RC"]
[PlyCount "85"]
[EventDate "2024.09.16"]
[EventType "swiss"]
[EventCountry "GER"]
[SourceTitle "playchess.com"]
[Source "ChessBase"]
[SourceQuality "1"]
[TimeControl "40/5400+30:1800+30"]

1. Nf3 {[%emt 0:00:06]} d5 {[%emt 0:00:03]} 2. d4 {[%emt 0:00:13]} Nf6 {[%emt 0:00:05]} 3. c4 {[%emt 0:00:07]} e6 {[%emt 0:00:05]} 4. g3 {[%emt 0:00:16]} Be7 {[%emt 0:00:06]} 5. Bg2 {[%emt 0:00:17]} Ne4 {[%emt 0:00:06]} 6. O-O {[%emt 0:01:28]} f5 {[%emt 0:00:07]} 7. Nc3 {[%emt 0:07:58]} c6 {[%emt 0:00:08]} 8. Qc2 {[%emt 0:01:24]} O-O {[%emt 0:00:55]} 9. Rb1 {[%emt 0:01:10]} a5 {[%emt 0:00:52]} 10. b3 {[%emt 0:04:45]} Nd7 {[%emt 0:01:19]} 11. Bb2 {[%emt 0:01:40]} Bd6 {[%emt 0:03:49]} 12. e3 {[%emt 0:01:28]} g5 {[%emt 0:03:12]} 13. Ne1 {[%emt 0:05:08]} g4 {[%emt 0:03:46]} 14. Nd3 {[%emt 0:01:36]} Qg5 {[%emt 0:05:36]} 15. Ne2 {[%emt 0:11:30]} h5 {[%emt 0:08:33]} 16. Nef4 {[%emt 0:01:22]} Qh6 {[%emt 0:05:26]} 17. Ne5 {[%emt 0:06:01]} Nxe5 {[%emt 0:10:52]} 18. dxe5 {[%emt 0:00:24]} Bb8 {[%emt 0:00:25]} 19. Rbc1 {[%emt 0:10:07]} Bd7 {[%emt 0:06:30]} 20. Rfd1 {[%emt 0:03:31]} Re8 {[%emt 0:07:44]} 21. h4 {[%emt 0:05:59]} gxh3 {[%emt 0:02:21]} 22. Bxe4 {[%emt 0:00:47]} fxe4 {[%emt 0:00:12]} 23. Qe2 {[%emt 0:00:26]} h4 {[%emt 0:12:43]} 24. Qg4+ {[%emt 0:06:05]} Qg7 {[%emt 0:03:56]} 25. Qxh4 {[%emt 0:02:50]} Rf8 {[%emt 0:05:07]} 26. Nh5 {[%emt 0:06:56]} Qh7 {[%emt 0:00:03]} 27. Qg5+ {[%emt 0:03:42]} Kh8 {[%emt 0:01:16]} 28. Nf6 {[%emt 0:00:02]} Rxf6 {[%emt 0:00:47]} 29. exf6 {[%emt 0:02:48]} h2+ {[%emt 0:00:04]} 30. Kg2 {[%emt 0:00:47]} e5 {[%emt 0:00:12]} 31. g4 {[%emt 0:02:17]} Bd6 {[%emt 0:00:43]} 32. f7 {[%emt 0:05:59]} Qxf7 {[%emt 0:00:47]} 33. Bxe5+ {[%emt 0:00:25]} Bxe5 {[%emt 0:00:34]} 34. Qxe5+ {[%emt 0:00:02]} Kg8 {[%emt 0:00:31]} 35. Qg5+ {[%emt 0:01:06]} Kf8 {[%emt 0:00:14]} 36. f4 {[%emt 0:03:14]} exf3+ {[%emt 0:00:16]} 37. Kxh2 {[%emt 0:00:13]} Re8 {[%emt 0:01:41]} 38. Rd4 {[%emt 0:01:49]} Re4 {[%emt 0:01:20]} 39. Rxe4 {[%emt 0:01:11]} dxe4 {[%emt 0:00:01]} 40. Kh3 {[%emt 0:01:53]} Qe6 {[%emt 0:01:36]} 41. Rh1 {[%emt 0:06:25]} f2 {[%emt 0:03:34]} 42. Kg3 {[%emt 0:02:21]} Kf7 {[%emt 0:00:02]} 43. Rh8 {[%emt 0:00:00]} 1-0

[Event "27th OIBM 2024"]
[Site "Gmund am Tegernsee"]
[Date "2024.10.29"]
[Round "4.47"]
[White "Mitev, Valentin"]
[Black "Spence, Isaac"]
[Result "1-0"]
[ECO "D04"]
[WhiteElo "2274"]
[BlackElo "2077"]
[Annotator "RC"]
[PlyCount "125"]
[EventDate "2024.09.16"]
[EventType "swiss"]
[EventCountry "GER"]
[SourceTitle "playchess.com"]
[Source "ChessBase"]
[SourceQuality "1"]
[TimeControl "40/5400+30:1800+30"]

1. d4 {[%emt 0:00:05]} d5 {[%emt 0:00:20]} 2. Nf3 {[%emt 0:00:21]} Nf6 {[%emt 0:00:10]} 3. e3 {[%emt 0:00:12]} c5 {[%emt 0:00:34]} 4. Nbd2 {[%emt 0:00:07]} cxd4 {[%emt 0:00:41]} 5. exd4 {[%emt 0:00:05]} Qc7 {[%emt 0:01:03]} 6. c3 {[%emt 0:01:03]} Nc6 {[%emt 0:00:54]} 7. Bb5 {[%emt 0:00:18]} Bg4 {[%emt 0:03:49]} 8. h3 {[%emt 0:02:32]} Bh5 {[%emt 0:08:31]} 9. g4 {[%emt 0:01:42]} Bg6 {[%emt 0:02:02]} 10. Ne5 {[%emt 0:00:03]} Nd7 {[%emt 0:00:27]} 11. Ndf3 {[%emt 0:11:02]} Be4 {[%emt 0:17:29]} 12. Nxd7 {[%emt 0:00:22]} Bxf3 {[%emt 0:00:23]} 13. Nf6+ {[%emt 0:04:20]} exf6 {[%emt 0:00:41]} 14. Qxf3 {[%emt 0:00:03]} Rd8 {[%emt 0:11:27]} 15. Kf1 {[%emt 0:02:20]} a6 {[%emt 0:02:12]} 16. Bf4 {[%emt 0:15:21]} Bd6 {[%emt 0:00:38]} 17. Re1+ {[%emt 0:00:15]} Kf8 {[%emt 0:00:08]} 18. Bxc6 {[%emt 0:00:08]} bxc6 {[%emt 0:00:50]} 19. Bc1 {[%emt 0:00:02]} h6 {[%emt 0:05:44]} 20. Kg2 {[%emt 0:02:33]} Kg8 {[%emt 0:02:21]} 21. h4 {[%emt 0:12:48]} Qd7 {[%emt 0:08:29]} 22. h5 {[%emt 0:00:08]} a5 {[%emt 0:00:09]} 23. b3 {[%emt 0:02:44]} Qc8 {[%emt 0:14:39]} 24. Re2 {[%emt 0:01:13]} Qd7 {[%emt 0:04:21]} 25. Rhe1 {[%emt 0:02:23]} Kh7 {[%emt 0:02:25]} 26. Qd3+ {[%emt 0:01:18]} g6 {[%emt 0:00:12]} 27. hxg6+ {[%emt 0:02:07]} Kg7 {[%emt 0:00:20]} 28. Qf3 {[%emt 0:02:41]} Kxg6 {[%emt 0:02:35]} 29. Rh1 {[%emt 0:01:28]} Rde8 {[%emt 0:00:35]} 30. Rxe8 {[%emt 0:10:48]} Qxe8 {[%emt 0:00:12]} 31. Rxh6+ {[%emt 0:00:31]} Rxh6 {[%emt 0:00:12]} 32. Qf5+ {[%emt 0:00:10]} Kg7 {[%emt 0:00:06]} 33. Bxh6+ {[%emt 0:00:04]} Kxh6 {[%emt 0:01:15]} 34. Qxf6+ {[%emt 0:00:03]} Kh7 {[%emt 0:00:08]} 35. Qxd6 {[%emt 0:00:05]} Qe4+ {[%emt 0:00:16]} 36. Kg3 {[%emt 0:05:01]} Qd3+ {[%emt 0:00:23]} 37. Kh4 {[%emt 0:00:05]} Qxc3 {[%emt 0:02:54]} 38. Qf6 {[%emt 0:00:37]} Kg8 {[%emt 0:00:54]} 39. Qg5+ {[%emt 0:04:11]} Kf8 {[%emt 0:02:01]} 40. Qe3 {[%emt 0:00:20]} Qc2 {[%emt 0:00:45]} 41. a4 {[%emt 0:32:45]} Qh7+ {[%emt 0:30:57]} 42. Kg3 {[%emt 0:00:33]} Qg6 {[%emt 0:04:48]} 43. f3 {[%emt 0:05:23]} Qc2 {[%emt 0:00:00]} 44. g5 {[%emt 0:00:00]} Qf5 {[%emt 0:00:00]} 45. Qf4 {[%emt 0:00:00]} Qc2 {[%emt 0:00:00]} 46. Qf6 {[%emt 0:00:00]} Kg8 {[%emt 0:00:00]} 47. Qe5 {[%emt 0:00:00]} Kf8 {[%emt 0:00:00]} 48. Qh8+ {[%emt 0:00:00]} Ke7 {[%emt 0:00:00]} 49. Qb8 {[%emt 0:00:00]} Qd2 {[%emt 0:00:00]} 50. Qe5+ {[%emt 0:00:00]} Kf8 {[%emt 0:00:00]} 51. g6 {[%emt 0:00:00]} Qh6 {[%emt 0:00:57]} 52. gxf7 {[%emt 0:00:00]} Qg6+ {[%emt 0:00:42]} 53. Kf2 {[%emt 0:00:00]} Kxf7 {[%emt 0:00:48]} 54. Qf4+ {[%emt 0:00:00]} Ke8 {[%emt 0:00:50]} 55. Qb8+ {[%emt 0:00:31]} Kf7 {[%emt 0:02:39]} 56. Qc7+ {[%emt 0:00:54]} Ke8 {[%emt 0:00:25]} 57. Qxa5 {[%emt 0:00:33]} Qc2+ {[%emt 0:00:11]} 58. Ke3 {[%emt 0:00:04]} Qxb3+ {[%emt 0:00:15]} 59. Kf4 {[%emt 0:00:04]} Kd7 {[%emt 0:01:00]} 60. Qa7+ {[%emt 0:00:49]} Ke6 {[%emt 0:00:21]} 61. Qa8 {[%emt 0:01:20]} Kd7 {[%emt 0:01:05]} 62. Qf8 {[%emt 0:07:12]} Qc2 {[%emt 0:00:42]} 63. Qf5+ {[%emt 0:00:45]} 1-0

[Event "27th OIBM 2024"]
[Site "Gmund am Tegernsee"]
[Date "2024.10.29"]
[Round "4.48"]
[White "Scheckenbach, Franz"]
[Black "Guth, Thomas"]
[Result "1/2-1/2"]
[ECO "C02"]
[WhiteElo "2076"]
[BlackElo "2261"]
[Annotator "RC"]
[PlyCount "136"]
[EventDate "2024.09.16"]
[EventType "swiss"]
[EventCountry "GER"]
[SourceTitle "playchess.com"]
[Source "ChessBase"]
[SourceQuality "1"]
[TimeControl "40/5400+30:1800+30"]

1. e4 {[%emt 0:00:05]} e6 {[%emt 0:00:05]} 2. d4 {[%emt 0:00:07]} d5 {[%emt 0:00:05]} 3. e5 {[%emt 0:00:07]} c5 {[%emt 0:00:07]} 4. c3 {[%emt 0:00:07]} Nc6 {[%emt 0:00:33]} 5. Nf3 {[%emt 0:00:09]} Bd7 {[%emt 0:00:15]} 6. Be2 {[%emt 0:01:00]} Qc7 {[%emt 0:03:35]} 7. O-O {[%emt 0:01:38]} Nge7 {[%emt 0:02:36]} 8. Na3 {[%emt 0:02:29]} a6 {[%emt 0:00:11]} 9. Nc2 {[%emt 0:00:28]} c4 {[%emt 0:05:26]} 10. b3 {[%emt 0:09:14]} cxb3 {[%emt 0:09:25]} 11. axb3 {[%emt 0:00:40]} f6 {[%emt 0:01:54]} 12. exf6 {[%emt 0:11:45]} gxf6 {[%emt 0:00:05]} 13. c4 {[%emt 0:00:32]} Ng6 {[%emt 0:05:54]} 14. cxd5 {[%emt 0:01:49]} exd5 {[%emt 0:00:12]} 15. Re1 {[%emt 0:04:08]} Kf7 {[%emt 0:05:22]} 16. g3 {[%emt 0:09:14]} Bd6 {[%emt 0:00:35]} 17. Bh6 {[%emt 0:05:16]} Nce7 {[%emt 0:02:35]} 18. Bd3 {[%emt 0:04:06]} Rhe8 {[%emt 0:07:58]} 19. Rc1 {[%emt 0:06:21]} Rac8 {[%emt 0:00:43]} 20. Nb4 {[%emt 0:14:52]} Qa5 {[%emt 0:02:00]} 21. Rxc8 {[%emt 0:01:20]} Rxc8 {[%emt 0:00:45]} 22. Nc2 {[%emt 0:01:19]} Qc7 {[%emt 0:05:07]} 23. Ne3 {[%emt 0:01:56]} Bb4 {[%emt 0:01:49]} 24. Rf1 {[%emt 0:02:54]} Bh3 {[%emt 0:02:06]} 25. Ng2 {[%emt 0:03:52]} Qd7 {[%emt 0:01:29]} 26. Bd2 {[%emt 0:01:46]} Bd6 {[%emt 0:04:01]} 27. Re1 {[%emt 0:00:24]} Rg8 {[%emt 0:01:42]} 28. Nfh4 {[%emt 0:03:37]} Qg4 {[%emt 0:03:17]} 29. Qxg4 {[%emt 0:02:02]} Bxg4 {[%emt 0:00:07]} 30. f3 {[%emt 0:00:24]} Bd7 {[%emt 0:00:17]} 31. Kf2 {[%emt 0:12:19]} Rc8 {[%emt 0:01:16]} 32. Rc1 {[%emt 0:00:00]} Rxc1 {[%emt 0:02:51]} 33. Bxc1 {[%emt 0:00:00]} Bb4 {[%emt 0:00:21]} 34. f4 {[%emt 0:00:00]} Bc3 {[%emt 0:00:57]} 35. Ke3 {[%emt 0:00:00]} Nc6 {[%emt 0:01:27]} 36. Nf3 {[%emt 0:00:00]} b5 {[%emt 0:01:31]} 37. f5 {[%emt 0:00:00]} Nge7 {[%emt 0:00:19]} 38. g4 {[%emt 0:00:00]} h5 {[%emt 0:00:51]} 39. h3 {[%emt 0:00:00]} hxg4 {[%emt 0:01:51]} 40. hxg4 {[%emt 0:00:00]} Bb4 {[%emt 0:06:10]} 41. Nf4 {[%emt 0:30:18]} Ba5 {[%emt 0:30:37]} 42. Ba3 {[%emt 0:02:05]} b4 {[%emt 0:00:42]} 43. Bc1 {[%emt 0:00:00]} Bc8 {[%emt 0:00:00]} 44. Bd2 {[%emt 0:00:00]} Bb6 {[%emt 0:00:00]} 45. Ne2 {[%emt 0:00:00]} a5 {[%emt 0:00:00]} 46. Bb5 {[%emt 0:00:00]} Bd7 {[%emt 0:00:00]} 47. Kd3 {[%emt 0:05:37]} Bc8 {[%emt 0:00:00]} 48. Bf4 {[%emt 0:00:00]} Na7 {[%emt 0:00:00]} 49. Ba4 {[%emt 0:00:00]} Ba6+ {[%emt 0:00:00]} 50. Kd2 {[%emt 0:01:30]} Bb5 {[%emt 0:00:00]} 51. Bxb5 {[%emt 0:00:00]} Nxb5 {[%emt 0:00:00]} 52. Kd3 {[%emt 0:01:00]} Bc7 {[%emt 0:00:00]} 53. Bxc7 {[%emt 0:00:00]} Nxc7 {[%emt 0:00:00]} 54. Nf4 {[%emt 0:00:00]} Nc8 {[%emt 0:00:00]} 55. Nd2 {[%emt 0:00:00]} Nd6 {[%emt 0:00:00]} 56. Ke3 {[%emt 0:00:00]} Nb7 {[%emt 0:00:00]} 57. Nd3 {[%emt 0:00:00]} Nd8 {[%emt 0:00:00]} 58. Nc5 {[%emt 0:00:00]} Nc6 {[%emt 0:00:23]} 59. Kd3 {[%emt 0:03:30]} Ke7 {[%emt 0:02:01]} 60. Nf3 {[%emt 0:00:00]} Kd6 {[%emt 0:01:34]} 61. Nb7+ {[%emt 0:00:00]} Ke7 {[%emt 0:00:42]} 62. Nc5 {[%emt 0:00:00]} Nb5 {[%emt 0:01:33]} 63. Na4 {[%emt 0:00:00]} Kd6 {[%emt 0:00:48]} 64. Ke3 {[%emt 0:00:00]} Nd8 {[%emt 0:02:56]} 65. Kd3 {[%emt 0:03:00]} Nb7 {[%emt 0:00:46]} 66. Nd2 {[%emt 0:00:00]} Nd8 {[%emt 0:02:03]} 67. Nf3 {[%emt 0:00:00]} Nb7 {[%emt 0:00:40]} 68. Nd2 {[%emt 0:00:00]} Nd8 {[%emt 0:02:58]} 1/2-1/2